bitfinex-derivatives/quotes_ETHF0:USTF0_20241129
["timestamp","ask_amount","ask_price","bid_price","bid_amount"]
[1732905718723,0.27877,3584.1,3584.0,0.27877]
[1732905719721,0.69196,3584.2,3584.1,0.27877]
[1732905720324,0.27877,3584.1,3584.0,0.27877]
[1732905720521,0.4132,3584.2,3584.1,0.27877]
[1732905720825,2.60030184,3584.5,3583.7,0.4334]
[1732905721019,0.27878,3584.0,3583.9,0.27878]
[1732905721420,0.4298,3584.4,3584.1,0.27877]
[1732905721619,0.4298,3584.4,3583.6,3.2078]
[1732905721917,3.2078,3583.8,3582.8,3.6584]
[1732905722122,0.863,3583.7,3582.8,3.6584]
[1732905722421,0.27882,3583.5,3583.3,0.27882]
[1732905723618,0.27882,3583.5,3583.4,0.27882]
[1732905724319,0.27883,3583.4,3583.3,0.27882]
[1732905724922,0.27884,3583.3,3583.2,0.27883]
[1732905725321,0.863,3583.7,3583.2,0.27883]
[1732905725522,0.27882,3583.5,3583.4,0.27882]
[1732905726820,0.27882,3583.5,3583.2,3.2078]
[1732905726821,0.27883,3583.3,3583.2,3.2078]
[1732905727029,0.27888,3582.6,3582.5,0.31976]
[1732905727422,0.27888,3582.6,3582.5,0.04088]
[1732905728224,0.27888,3582.6,3582.5,0.31977]
[1732905730726,0.27888,3582.6,3582.5,0.04088]
[1732905730928,0.4105,3582.9,3582.5,0.04088]
[1732905731125,0.438,3583.0,3582.5,0.04088]
[1732905731331,3.2078,3583.5,3583.3,0.27882]
[1732905731332,0.27883,3583.4,3583.3,0.27882]
[1732905731627,0.4299,3583.8,3583.3,2.7026537]
[1732905731824,0.27879,3583.9,3583.8,0.27878]
[1732905732019,3.6525,3584.3,3583.5,3.2078]
[1732905732020,0.4521,3584.2,3583.5,3.2078]
[1732905732224,0.4521,3584.2,3583.6,0.2788]
[1732905732225,0.27881,3583.7,3583.6,0.2788]
[1732905732430,0.27881,3583.6,3583.5,3.48661]
[1732905732631,0.27884,3583.2,3583.1,3.2078]
[1732905732929,0.27884,3583.2,3583.1,0.27884]
[1732905733126,0.27883,3583.4,3583.3,0.27882]
[1732905733526,0.27883,3583.4,3582.9,0.4242]
[1732905733724,0.27884,3583.3,3583.2,0.27883]
[1732905734333,0.27885,3583.1,3583.0,0.27885]
[1732905735329,0.27884,3583.2,3583.1,0.27884]
[1732905736835,0.27885,3583.1,3583.0,0.27885]
[1732905737135,0.27884,3583.2,3583.1,0.27884]
[1732905737533,0.27885,3583.1,3583.0,0.27885]
[1732905738034,3.90488,3583.3,3582.6,0.4429]
[1732905738238,3.90488,3583.3,3582.5,0.49148]
[1732905738239,3.2078,3583.3,3582.5,0.04088]
[1732905738532,0.27888,3582.6,3582.5,0.04088]
[1732905739126,0.27888,3582.6,3582.5,0.31977]
[1732905739339,0.27888,3582.6,3582.5,0.27889]
[1732905740531,0.27887,3582.8,3582.7,0.27887]
[1732905740732,0.27889,3582.7,3582.6,0.27888]
[1732905741333,0.4115,3582.9,3582.2,3.6498]
[1732905741540,0.27891,3582.3,3582.2,0.442]
[1732905742132,0.4392,3582.6,3581.8,3.647]
[1732905742434,0.4379,3582.2,3581.8,0.71814]
[1732905742739,0.27894,3581.9,3581.8,0.27894]
[1732905743233,0.4379,3582.2,3581.6,0.4344]
[1732905743438,0.27893,3582.0,3581.9,0.27893]
[1732905744629,0.4379,3582.2,3581.6,0.4344]
[1732905744829,0.27895,3581.9,3581.8,0.27893]
[1732905745031,0.27894,3581.9,3581.8,0.27893]
[1732905745233,0.27894,3581.9,3581.8,3.48673]
[1732905745433,0.27894,3582.0,3581.9,0.27893]
[1732905746036,0.27893,3582.1,3582.0,0.27892]
[1732905746940,0.27894,3582.0,3581.9,0.27893]
[1732905747343,0.27894,3581.9,3581.8,3.48674]
[1732905748740,0.27894,3581.9,3581.8,0.27894]
[1732905749739,0.27894,3582.1,3582.0,0.27892]
[1732905749945,0.27894,3582.0,3581.9,0.27893]
[1732905750643,0.27897,3581.5,3581.4,3.2078]
[1732905750841,0.27897,3581.5,3581.4,3.48678]
[1732905751042,0.27897,3581.5,3581.4,3.2078]
[1732905751647,0.27897,3581.5,3581.4,3.48678]
[1732905752345,4.35066,3581.9,3581.4,3.48678]
[1732905752346,0.27895,3581.9,3581.8,0.27894]
[1732905754951,0.4379,3582.2,3581.5,0.8584]
[1732905755146,0.27894,3582.0,3581.9,0.27893]
[1732905760647,0.4379,3582.2,3581.8,3.2078]
[1732905760952,0.27889,3582.6,3582.5,0.27888]
[1732905762556,0.4127,3582.8,3582.2,4.0824]
[1732905762855,0.2789,3582.5,3582.4,0.27889]
[1732905766462,0.27889,3582.7,3582.6,0.27888]
[1732905766754,0.4127,3582.8,3582.2,4.0824]
[1732905766946,0.2789,3582.6,3582.5,0.27889]
[1732905769352,0.4127,3582.8,3582.2,4.0824]
[1732905769562,0.27891,3582.3,3582.2,3.91901]
[1732905769759,0.27891,3582.3,3582.2,3.48671]
[1732905773055,0.27891,3582.3,3582.2,3.2078]
[1732905773358,0.27891,3582.3,3581.8,0.4393]
[1732905773359,2.3326537,3582.5,3581.8,0.4393]
[1732905773560,0.27895,3581.8,3581.7,3.48675]
[1732905776256,3.90506,3582.4,3581.7,3.2078]
[1732905776465,0.27892,3582.3,3582.2,0.2789]
[1732905776658,0.27891,3582.3,3582.2,0.2789]
[1732905779857,0.27892,3582.1,3582.0,1.25892]
[1732905780263,0.8737,3582.2,3581.8,0.4146]
[1732905780457,0.27894,3582.0,3581.9,0.27893]
[1732905781355,0.27895,3581.8,3581.7,3.48675]
[1732905784162,0.8737,3582.2,3581.7,3.2078]
[1732905784468,0.8737,3582.2,3581.8,0.69737]
[1732905784669,0.27889,3582.6,3582.5,0.27888]
[1732905784961,4.53507,3582.9,3582.1,4.1418]
[1732905785162,4.53507,3582.9,3582.3,0.4256]
[1732905785462,0.2789,3582.5,3582.4,0.27889]
[1732905786363,0.27888,3582.8,3582.7,0.27887]
[1732905787252,1.12277,3582.9,3582.8,0.27887]
[1732905789362,0.2789,3582.5,3582.4,0.27889]
[1732905789563,0.27888,3582.8,3582.7,0.27887]
[1732905789761,1.12276,3582.9,3582.8,0.27887]
[1732905790163,0.8439,3582.9,3582.8,0.27887]
[1732905790563,0.27885,3583.1,3583.0,0.27884]
[1732905792870,0.27886,3583.0,3582.9,0.27885]
[1732905793066,0.8447,3583.3,3583.2,0.27884]
[1732905793067,1.12353,3583.3,3583.2,0.27884]
[1732905793272,0.27883,3583.4,3583.3,0.27882]
[1732905793466,1.1321,3583.7,3583.6,0.27881]
[1732905793771,0.7056,3583.7,3583.6,0.27881]
[1732905794766,0.4268,3583.7,3583.6,0.27881]
[1732905794963,0.27879,3583.9,3583.8,0.27878]
[1732905795965,0.4268,3584.1,3583.5,0.4164]
[1732905796272,0.27878,3584.0,3583.9,0.27878]
[1732905799079,0.4268,3584.1,3583.5,0.4164]
[1732905799280,0.70557,3584.1,3584.0,0.27877]
[1732905806583,0.27879,3583.9,3583.8,0.27878]
[1732905806786,0.4268,3584.1,3583.5,0.4164]
[1732905806982,0.4268,3584.1,3583.6,0.27879]
[1732905806983,0.27881,3583.7,3583.6,0.27879]
[1732905807577,0.27881,3583.7,3583.5,0.4164]
[1732905807578,3.2078,3583.7,3582.6,3.48687392]
[1732905807778,2.3326537,3583.3,3582.6,3.48687392]
[1732905808084,0.27886,3583.0,3582.9,0.27885]
[1732905808375,0.27885,3583.1,3583.0,0.27884]
[1732905808985,0.71515,3583.2,3583.1,0.27884]
[1732905814887,0.27885,3583.1,3583.0,0.27885]
[1732905815588,0.27885,3583.0,3582.9,0.72525]
[1732905817383,0.4363,3583.2,3583.0,0.27884]
[1732905817384,0.27885,3583.1,3583.0,0.27884]
[1732905818290,2.3326537,3583.3,3582.9,0.4464]
[1732905818485,2.3326537,3583.3,3583.2,0.27884]
[1732905818486,0.27884,3583.3,3583.2,0.27884]
[1732905820187,1.40977623,3583.3,3583.2,0.27884]
[1732905821392,1.13093623,3583.3,3583.2,0.27884]
[1732905821594,1.40976623,3583.3,3583.2,0.27884]
[1732905823290,0.4217,3583.6,3583.5,0.27881]
[1732905823492,0.27882,3583.6,3583.5,0.27881]
[1732905826490,0.27882,3583.6,3583.5,0.69721]
[1732905826890,0.27877,3584.2,3584.1,0.27876]
[1732905827096,1.14114,3584.5,3584.4,0.27874]
[1732905827397,0.27874,3584.6,3584.5,0.27873]
[1732905827887,1.13093623,3584.7,3584.3,3.2078]
[1732905828089,1.13093623,3584.7,3584.6,0.27873]
[1732905828090,1.40965623,3584.7,3584.6,0.27873]
[1732905830297,0.27872,3584.7,3584.6,0.27873]
[1732905830891,0.27871,3584.9,3584.8,0.2787]
[1732905831090,0.27872,3584.8,3584.7,0.27872]
[1732905832195,0.27872,3584.8,3584.7,0.27871]
[1732905834788,1.53534,3585.1,3584.8,0.27871]
[1732905834789,0.27871,3584.9,3584.8,0.27871]
[1732905835687,0.27871,3584.9,3584.3,3.2078]
[1732905835688,0.27872,3584.8,3584.7,0.27872]
[1732905838900,0.27873,3584.7,3584.6,0.27872]
[1732905840197,0.8386,3585.1,3584.3,3.2078]
[1732905840400,0.27874,3584.4,3584.3,4.41555]
[1732905841295,0.27874,3584.4,3584.3,4.1368]
[1732905842406,0.27874,3584.4,3584.3,3.2078]
[1732905844105,1.14222,3584.7,3583.7,0.2788]
[1732905844106,2.33700297,3584.6,3583.7,0.2788]
[1732905844402,0.2788,3583.8,3583.7,0.27879]
[1732905845404,0.4245,3584.1,3583.5,0.929]
[1732905845603,0.27881,3583.6,3583.5,1.2078]
[1732905846505,0.27881,3583.6,3583.5,1.20781]
[1732905848716,0.27881,3583.6,3583.5,0.27881]
[1732905849112,0.27881,3583.6,3583.4,3.2078]
[1732905849113,0.27881,3583.5,3583.4,3.48662]
[1732905849308,0.27881,3583.5,3583.4,3.2078]
[1732905850019,0.27882,3583.4,3583.3,0.929]
[1732905850315,0.27883,3583.3,3583.0,3.2078]
[1732905850508,0.27883,3583.3,3582.8,0.4414]
[1732905850509,0.27885,3583.0,3582.9,0.4374]
[1732905850812,0.27885,3583.0,3582.9,0.71626]
[1732905852721,0.27885,3583.2,3583.1,0.27884]
[1732905853027,0.27885,3583.0,3582.9,0.4374]
[1732905853223,0.27886,3582.9,3582.8,0.55786617]
[1732905853429,0.27886,3582.9,3582.8,0.27900617]
[1732905853930,0.27887,3582.8,3582.7,0.71627]
[1732905856531,1.13074265,3583.0,3582.7,0.4374]
[1732905856736,0.27887,3582.9,3582.8,0.27886]
[1732905859127,0.69185,3583.1,3582.7,0.71646145]
[1732905859428,0.27884,3583.3,3583.2,0.27883]
[1732905861628,0.27884,3583.3,3583.0,3.2078]
[1732905861629,0.27884,3583.2,3583.1,0.27884]
[1732905862131,1.13074265,3583.3,3583.0,3.2078]
[1732905862332,0.27884,3583.1,3583.0,3.48665]
[1732905862634,0.4517,3583.4,3583.0,3.2078]
[1732905862836,0.27883,3583.3,3583.2,0.27883]
[1732905863337,0.27883,3583.3,3583.2,0.72653]
[1732905864430,0.27883,3583.3,3583.2,0.4477]
[1732905865141,0.27883,3583.3,3583.2,0.72654]
[1732905865429,0.2788,3583.7,3583.2,1.14479]
[1732905865630,0.2788,3583.7,3583.6,0.27881]
[1732905869341,0.2788,3583.8,3583.7,0.27879]
[1732905874241,1.14494,3584.1,3583.9,0.27877]
[1732905874242,0.27877,3584.0,3583.9,0.27877]
[1732905874451,1.40951265,3584.0,3583.9,0.27877]
[1732905876643,1.40951265,3584.0,3583.5,0.4475]
[1732905876644,1.13074265,3584.0,3583.5,0.4475]
[1732905876839,1.13074265,3583.8,3583.5,0.4475]
[1732905877044,1.40953265,3583.8,3583.7,0.2788]
[1732905879949,1.40953265,3583.8,3583.5,0.4475]
[1732905879950,0.27881,3583.6,3583.5,0.72631]
[1732905880148,0.27883,3583.5,3583.4,0.928]
[1732905880352,0.27883,3583.5,3583.2,0.27883]
[1732905880353,1.40958265,3583.3,3583.2,0.27883]
[1732905881147,0.27884,3583.2,3583.1,0.27884]
[1732905881348,0.72574,3583.2,3583.1,0.27884]
[1732905886241,0.27884,3583.1,3583.0,3.2078]
[1732905886753,0.27886,3582.9,3582.8,0.27887]
[1732905886952,1.40960265,3582.9,3582.8,0.27887]
[1732905887548,0.27887,3582.8,3582.7,0.928]
[1732905887744,0.27887,3582.8,3582.6,3.2078]
[1732905887745,0.27888,3582.7,3582.6,3.2078]
[1732905888248,0.69178,3582.7,3582.6,3.2078]
[1732905890756,0.69178,3582.7,3582.6,3.48668]
[1732905890951,0.27889,3582.5,3582.4,0.96727392]
[1732905891145,0.27889,3582.5,3582.2,0.928]
[1732905891146,1.13074265,3582.5,3582.2,0.928]
[1732905891349,0.27891,3582.3,3582.2,1.2069]
[1732905891758,0.2789,3582.4,3582.3,0.2789]
[1732905893454,0.69726,3582.4,3581.7,0.04868]
[1732905893752,4.33854265,3582.5,3581.7,0.04868]
[1732905893753,1.40969265,3581.8,3581.7,0.04868]
[1732905894568,1.40969265,3581.8,3581.7,0.27895]
[1732905896460,3.2078,3582.5,3581.7,3.4278]
[1732905896659,0.27892,3582.2,3582.1,0.27891]
[1732905896861,1.13074265,3582.2,3581.8,1.3415]
[1732905897058,0.27893,3582.1,3582.0,0.27892]
[1732905897262,1.13074265,3582.2,3581.9,40.8]
[1732905897452,0.27893,3582.0,3581.9,0.27893]
[1732905897659,0.27894,3581.9,3581.8,1.62044]
[1732905898267,1.40968265,3581.9,3581.8,1.3415]
[1732905898661,1.40968265,3581.9,3581.8,1.62045]
[1732905898862,1.40968265,3581.9,3581.8,1.3415]
[1732905899062,1.40968265,3581.9,3581.8,1.62045]
[1732905899261,1.40968265,3581.9,3581.8,1.3415]
[1732905899967,1.40968265,3581.9,3581.8,1.62045]
[1732905900766,1.40968265,3581.9,3581.8,0.69145]
[1732905901370,1.40968265,3581.9,3581.8,0.4125]
[1732905901766,1.40968265,3581.9,3581.8,0.69145]
[1732905901965,1.40968265,3581.9,3581.8,0.4125]
[1732905902166,0.27895,3581.8,3581.7,3.2078]
[1732905902465,0.4428,3582.0,3581.9,0.27894]
[1732905902674,2.52472265,3583.8,3581.9,0.27894]
[1732905902675,3.2078,3583.0,3581.9,1.37074265]
[1732905902860,2.94,3584.0,3582.6,0.27887]
[1732905902861,0.27888,3582.7,3582.6,0.27887]
[1732905903061,1.13074265,3582.9,3582.4,0.4127]
[1732905903466,1.13074265,3582.9,3582.5,0.4504]
[1732905903769,0.27888,3582.7,3582.6,0.27888]
[1732905904274,0.27888,3582.6,3582.5,0.72928]
[1732905904767,0.27888,3582.6,3582.5,0.4504]
[1732905904972,0.2789,3582.4,3582.3,3.2078]
[1732905905270,0.27894,3582.0,3581.9,0.27893]
[1732905905458,0.27894,3582.0,3581.9,0.69243]
[1732905905661,0.27893,3582.1,3582.0,0.27892]
[1732905906064,1.3101,3582.5,3581.9,1.11084]
[1732905906266,0.882,3582.5,3582.4,0.2789]
[1732905906468,0.27891,3582.4,3582.3,0.2789]
[1732905906661,1.1609,3582.5,3582.4,0.2789]
[1732905906862,0.882,3582.5,3582.4,0.2789]
[1732905907274,1.16089,3582.5,3582.4,0.2789]
[1732905907474,0.27891,3582.4,3582.3,0.2789]
[1732905907972,0.882,3582.5,3581.9,0.4135]
[1732905908174,0.27891,3582.4,3582.3,0.2789]
[1732905909080,0.882,3582.5,3581.9,1.11084]
[1732905909272,1.1609,3582.5,3582.4,0.2789]
[1732905909875,0.882,3582.5,3582.4,0.2789]
[1732905910075,0.882,3582.5,3581.9,1.11084]
[1732905910076,3.2078,3583.4,3582.2,3.2078]
[1732905910276,2.33939778,3583.5,3583.2,0.27884]
[1732905910277,0.27883,3583.3,3583.2,0.27884]
[1732905910577,0.27885,3583.2,3583.1,0.27884]
[1732905911072,0.27886,3583.0,3582.9,0.27885]
[1732905911281,0.4494,3583.4,3582.8,0.8484]
[1732905911469,0.27884,3583.2,3583.1,0.27884]
[1732905911877,0.4494,3583.4,3582.8,0.8484]
[1732905912079,0.27883,3583.3,3583.2,0.27883]
[1732905912274,0.27883,3583.3,3582.8,1.54557]
[1732905912275,0.72823,3583.4,3583.3,0.27883]
[1732905912472,0.27884,3583.3,3583.2,0.27883]
[1732905912979,0.72823,3583.4,3583.3,0.27883]
[1732905913181,0.4494,3583.4,3582.8,0.8484]
[1732905913374,0.27886,3583.0,3582.9,0.27885]
[1732905913577,0.4494,3583.4,3582.8,0.8484]
[1732905913772,0.27885,3583.1,3583.0,0.27884]
[1732905913979,0.4494,3583.4,3582.8,0.8484]
[1732905914176,0.4494,3583.4,3582.9,0.27885]
[1732905914177,0.27886,3583.0,3582.9,0.27885]
[1732905916175,0.27886,3582.9,3582.8,0.4276]
[1732905916477,0.27887,3582.8,3582.7,3.2078]
[1732905916672,1.10997,3582.8,3582.7,3.2078]
[1732905917884,1.10997,3582.8,3582.2,0.927]
[1732905917885,0.27891,3582.3,3582.2,0.927]
[1732905919179,0.27891,3582.3,3582.2,1.20591]
[1732905921776,0.27891,3582.3,3582.2,0.927]
[1732905921981,0.2789,3582.5,3582.4,0.27889]
[1732905923482,0.2789,3582.4,3582.3,0.4335]
[1732905923681,0.2789,3582.4,3582.3,0.71241]
[1732905925384,2.33939778,3582.6,3582.0,3.6405]
[1732905925584,0.27892,3582.2,3582.1,0.27891]
[1732905925788,0.27892,3582.2,3582.1,0.68941]
[1732905926086,0.71341,3582.3,3582.2,0.27891]
[1732905926386,0.27891,3582.3,3582.2,0.27891]
[1732905926689,0.27891,3582.4,3582.3,0.2789]
[1732905927676,0.27891,3582.4,3582.1,0.8472]
[1732905927677,0.2789,3582.5,3582.4,0.27889]
[1732905927876,3.69109,3583.3,3582.4,0.03]
[1732905928085,3.48666,3583.0,3582.9,0.27886]
[1732905928280,0.27886,3583.0,3582.9,0.27886]
[1732905929585,0.27888,3582.8,3582.7,0.27887]
[1732905929783,0.27886,3583.0,3582.9,0.27885]
[1732905931689,0.27887,3582.9,3582.8,0.27886]
[1732905931988,0.27889,3582.6,3582.5,0.27888]
[1732905932587,0.27891,3582.3,3582.2,0.27891]
[1732905933289,0.4511,3582.5,3582.1,0.8472]
[1732905933589,0.27889,3582.6,3582.5,0.27888]
[1732905935489,0.71148,3582.7,3582.6,0.27888]
[1732905935994,0.27888,3582.7,3582.6,0.27888]
[1732905936187,0.27888,3582.7,3582.3,0.69726]
[1732905936188,3.2078,3582.8,3582.7,0.27888]
[1732905936384,3.48667,3582.8,3582.7,0.27888]
[1732905936890,3.2078,3582.8,3582.7,0.27888]
[1732905937082,0.27887,3582.9,3582.8,0.27887]
[1732905937283,0.72996,3583.0,3582.9,0.27886]
[1732905937477,0.27885,3583.1,3583.0,0.27884]
[1732905937886,0.27885,3583.1,3582.8,0.8578]
[1732905938088,0.27886,3583.0,3582.9,0.27885]
[1732905944090,3.2078,3583.2,3582.8,0.8578]
[1732905944291,3.48656,3584.2,3584.1,0.27877]
[1732905944490,0.2788,3583.7,3583.5,0.27881]
[1732905944798,2.33939778,3583.9,3583.8,0.27879]
[1732905944990,2.61817778,3583.9,3583.8,0.27879]
[1732905945496,3.2078,3584.2,3583.5,0.4281]
[1732905945795,0.27879,3583.8,3583.7,0.27879]
[1732905946591,0.27879,3583.9,3583.8,0.27878]
[1732905949000,0.27878,3584.1,3584.0,0.27877]
[1732905949502,0.27878,3584.0,3583.9,0.27878]
[1732905952597,3.2078,3584.2,3583.5,0.4281]
[1732905952798,0.27878,3584.0,3583.9,0.27877]
[1732905953199,3.2078,3584.2,3583.6,0.69701]
[1732905953406,3.2078,3584.2,3584.0,0.27877]
[1732905953407,0.27877,3584.1,3584.0,0.27877]
[1732905956197,0.2788,3583.8,3583.7,0.27879]
[1732905958001,3.2078,3584.2,3583.5,2.76749778]
[1732905958203,3.48656,3584.2,3584.1,0.27877]
[1732905960998,3.2078,3584.2,3584.1,0.27877]
[1732905961894,3.48656,3584.2,3584.1,0.27877]
[1732905963598,3.2078,3584.2,3584.1,0.27877]
[1732905964205,0.2788,3583.8,3583.7,0.27879]
[1732905964399,0.69693,3584.1,3583.5,0.4281]
[1732905964604,0.27881,3583.7,3583.6,0.2788]
[1732905964902,0.4108,3584.0,3583.5,0.4281]
[1732905965105,1.1469,3583.9,3583.8,0.27878]
[1732905965605,0.27881,3583.7,3583.6,0.27879]
[1732905966506,3.2078,3584.9,3584.8,0.27871]
[1732905966706,4.0595,3584.9,3584.8,0.27871]
[1732905967006,4.3382,3584.9,3584.8,0.27871]
[1732905968405,3.4865,3584.9,3584.8,0.27871]
[1732905968605,3.2078,3584.9,3584.8,0.27871]
[1732905968802,3.4865,3584.9,3584.8,0.27871]
[1732905969101,3.2078,3584.9,3584.8,0.27871]
[1732905969896,3.2078,3584.9,3584.6,0.27872]
[1732905970101,3.2078,3584.9,3584.4,1.3024]
[1732905970309,0.27872,3584.8,3584.7,0.27871]
[1732905974310,3.2078,3584.9,3584.4,1.3024]
[1732905974509,0.27873,3584.7,3584.6,0.27872]
[1732905974707,0.27874,3584.5,3584.4,0.4189]
[1732905974910,0.27875,3584.3,3584.2,0.924]
[1732905978110,0.27875,3584.4,3584.3,0.27875]
[1732905978312,0.27874,3584.5,3584.4,0.27873]
[1732905980010,0.27874,3584.4,3584.3,0.69425]
[1732905980215,0.27874,3584.4,3584.3,0.4155]
[1732905980513,0.27874,3584.4,3584.3,0.69425]
[1732905982516,0.27874,3584.5,3584.4,0.27873]
[1732905983609,0.4482,3584.8,3584.3,0.4155]
[1732905983817,3.48651,3584.9,3584.8,0.27871]
[1732905984416,3.4865,3584.9,3584.8,0.27871]
[1732905985019,0.2787,3584.9,3584.8,0.27871]
[1732905985413,0.2787,3584.9,3584.6,0.8723]
[1732905985414,0.2787,3585.0,3584.9,0.2787]
[1732905986117,0.2787,3585.0,3584.9,0.7053]
[1732905989325,0.8579,3585.4,3584.9,0.4266]
[1732905989525,0.2787,3585.1,3585.0,0.27869]
[1732905989724,0.8579,3585.4,3584.9,0.4266]
[1732905990023,0.27869,3585.2,3585.1,0.27868]
[1732905990830,0.27868,3585.3,3585.2,0.27867]
[1732905991027,3.48646,3585.5,3585.4,0.27867]
[1732905993534,0.27869,3585.1,3585.0,1.20069]
[1732905993830,0.27868,3585.3,3585.2,0.27867]
[1732905994731,0.27868,3585.4,3585.3,0.27867]
[1732905996525,3.90446,3585.5,3585.0,0.922]
[1732905996825,3.90446,3585.5,3585.0,1.20069]
[1732905996826,0.27869,3585.1,3585.0,1.20069]
[1732905997923,0.4467,3585.3,3585.0,0.922]
[1732905998126,0.27868,3585.4,3585.3,0.27867]
[1732905999437,3.2078,3585.5,3585.0,0.922]
[1732905999630,0.27869,3585.3,3585.2,0.27867]
[1732905999832,3.2078,3585.5,3585.3,0.27867]
[1732905999833,0.27868,3585.4,3585.3,0.27867]
[1732906000333,0.27869,3585.2,3585.1,0.27868]
[1732906000533,0.27869,3585.2,3585.1,0.27869]
[1732906001127,0.27871,3585.0,3584.9,1.2007]
[1732906001631,0.27869,3585.1,3585.0,0.27868]
[1732906003029,3.90446,3585.5,3584.9,0.922]
[1732906003227,0.27869,3585.3,3585.2,0.27867]
[1732906007732,4.31423,3585.6,3584.9,0.922]
[1732906008242,0.27869,3585.2,3585.1,0.27867]
[1732906009437,0.27868,3585.4,3585.3,0.27866]
[1732906010543,3.89625,3585.6,3585.5,0.27866]
[1732906012235,3.6176,3585.6,3585.3,0.4507]
[1732906012438,0.27867,3585.5,3585.4,0.27866]
[1732906013333,0.27867,3585.5,3585.4,0.1588378]
[1732906016348,3.6176,3585.6,3585.2,0.4239]
[1732906016638,0.27867,3585.4,3585.3,0.27867]
[1732906016839,3.2078,3585.6,3585.2,0.4239]
[1732906017140,0.27863,3586.0,3585.9,0.27862]
[1732906017343,4.0357,3586.1,3585.7,1.3253]
[1732906017636,0.69441,3586.1,3586.0,0.27862]
[1732906018738,0.27861,3586.3,3586.2,0.2786]
[1732906019441,1.13143,3586.7,3586.2,0.2786]
[1732906019442,3.2078,3587.4,3586.5,0.69646]
[1732906019646,0.27853,3587.2,3587.1,0.27853]
[1732906020740,3.2078,3587.4,3586.8,0.922]
[1732906020945,0.4125,3588.1,3587.4,0.69628]
[1732906021135,0.27847,3588.0,3587.9,0.27847]
[1732906021540,0.4455,3588.2,3587.5,1.8127]
[1732906021740,0.27847,3587.9,3587.8,0.27847]
[1732906022133,0.4455,3588.2,3587.5,1.8127]
[1732906022641,0.27847,3587.9,3587.8,0.27847]
[1732906022833,0.4455,3588.2,3587.5,1.8127]
[1732906023039,0.27848,3587.8,3587.6,0.27849]
[1732906023235,0.27848,3587.8,3587.5,1.8127]
[1732906023236,0.27848,3587.8,3587.7,0.27849]
[1732906023747,0.4455,3588.2,3587.5,1.8127]
[1732906023948,0.27848,3587.8,3587.7,0.27848]
[1732906024548,0.27849,3587.7,3587.6,0.27849]
[1732906024850,0.27849,3587.7,3587.5,2.0912]
[1732906025048,0.4455,3588.2,3587.5,1.8127]
[1732906025249,0.27849,3587.7,3587.6,0.27849]
[1732906025751,0.27849,3587.7,3587.5,1.8127]
[1732906025752,0.27849,3587.6,3587.5,2.0912]
[1732906027846,0.27849,3587.6,3587.5,1.8127]
[1732906028047,0.27849,3587.6,3587.5,2.0912]
[1732906028645,0.27849,3587.6,3587.5,1.8127]
[1732906028951,0.27849,3587.6,3587.5,2.0912]
[1732906029446,0.27849,3587.6,3587.5,1.8127]
[1732906029848,0.27849,3587.6,3587.5,2.0912]
[1732906030244,0.27849,3587.6,3587.5,1.3714]
[1732906030448,0.27851,3587.4,3587.1,3.2078]
[1732906030753,0.27855,3586.9,3586.8,1.19855]
[1732906031350,0.27855,3586.9,3586.8,1.19856]
[1732906031852,0.27855,3586.9,3586.8,1.47730409]
[1732906032545,0.4384,3587.3,3586.8,0.27874409]
[1732906032742,0.27855,3587.0,3586.9,0.27855]
[1732906032939,0.27855,3586.9,3586.8,1.19874409]
[1732906033145,0.27855,3586.9,3586.8,0.27874409]
[1732906033350,0.27856,3586.7,3586.6,3.2078]
[1732906033549,0.27856,3586.7,3586.4,1.277]
[1732906033550,0.27858,3586.5,3586.4,0.4306]
[1732906033745,0.27858,3586.5,3586.4,0.70919]
[1732906033942,0.27856,3586.8,3586.7,0.27856]
[1732906034752,0.27856,3586.9,3586.8,0.27855]
[1732906035647,0.27854,3587.1,3587.0,0.27853]
[1732906035848,1.12475,3587.6,3586.8,0.4122]
[1732906036150,0.27854,3587.1,3587.0,0.27854]
[1732906037448,0.27854,3587.0,3586.9,1.19854]
[1732906039353,0.27854,3587.1,3587.0,0.27853]
[1732906039554,3.2078,3588.4,3587.1,1.39266]
[1732906039859,0.27845,3588.2,3588.1,0.27845]
[1732906040247,0.4132,3588.3,3588.2,0.27845]
[1732906040657,0.69164,3588.3,3588.2,0.27845]
[1732906041357,0.4132,3588.3,3588.2,0.27845]
[1732906042147,0.69164,3588.3,3588.2,0.27845]
[1732906043759,0.4132,3588.3,3587.9,0.8288]
[1732906043957,0.4132,3588.3,3588.1,0.27845]
[1732906043958,0.27845,3588.2,3588.1,0.27845]
[1732906045354,0.4132,3588.3,3588.2,0.27845]
[1732906045663,0.69164,3588.3,3588.2,0.27845]
[1732906048262,0.4132,3588.3,3588.2,0.27845]
[1732906049067,0.4115,3588.6,3588.0,3.2078]
[1732906049251,0.4115,3588.6,3588.5,0.27842]
[1732906050753,0.68992,3588.6,3588.5,0.27842]
[1732906052763,0.4115,3588.6,3588.5,0.27842]
[1732906053263,0.4318,3588.7,3588.6,0.27842]
[1732906053462,0.4318,3588.7,3588.6,2.61781778]
[1732906053666,0.2784,3588.9,3588.8,0.2784]
[1732906054382,0.4511,3589.2,3589.0,0.27838]
[1732906054383,0.27839,3589.1,3589.0,0.27838]
[1732906056064,0.4511,3589.2,3588.6,4.33783778]
[1732906056266,0.4511,3589.2,3589.1,0.27838]
[1732906056670,0.4511,3589.2,3588.5,3.2078]